{"text_format":"1","workbook":"xlsx","n_sheets":8,"sheets":["RANDBETWEEN","RANDARRARY","TRUNC & RAND","ROUND & RAND","INT & RAND","LEFT & RANDBETWEEN"," Analysis ToolPak","VBA"],"not_rendered":{"charts":0,"images":0,"macros":1,"external_links":0,"defined_names":0,"comments":0,"pivot_tables":0},"unopened":[],"bounds":{"document_bytes":16777216,"sheet_cells":100000,"rows_first":2000,"rows_last":500,"rows_between":2000,"halvings":0,"cell_chars":16384,"cell_head_chars":4096},"cells_cut":0,"cells_raw":0,"read":"whole","date_system":"1900"}

{"sheet":"RANDBETWEEN","index":0,"n_rows":9,"n_cols":2,"rows_kept":9,"cut":false,"hidden":false,"merged":[]}
[]
[null,"Use of RANDBETWEEN Function"]
[]
[null,"4 Digit Random Number"]
[null,{"$f":"RANDBETWEEN(1000,9999)","v":4718}]
[null,{"$f":"RANDBETWEEN(1000,9999)","v":7943}]
[null,7237]
[null,1410]
[null,3605]

{"sheet":"RANDARRARY","index":1,"n_rows":9,"n_cols":2,"rows_kept":9,"cut":false,"hidden":false,"merged":[]}
[]
[null,"Use of RANDARRARY Function"]
[]
[null,"4 Digit Random Number"]
[null,{"$f":"_xlfn.RANDARRAY(5,1,0,9999,TRUE)","v":8474}]
[null,9971]
[null,114]
[null,8889]
[null,3762]

{"sheet":"TRUNC & RAND","index":2,"n_rows":9,"n_cols":2,"rows_kept":9,"cut":false,"hidden":false,"merged":[]}
[]
[null,"Use of TRUNC & RAND Functions"]
[]
[null,"4 Digit Random Number"]
[null,{"$f":"TRUNC(RAND()*9999,4)","v":8637.9488999999994}]
[null,{"$f":"TRUNC(RAND()*9999,4)","v":5658.11}]
[null,5239.3073000000004]
[null,4202.4318000000003]
[null,1611.2868000000001]

{"sheet":"ROUND & RAND","index":3,"n_rows":9,"n_cols":2,"rows_kept":9,"cut":false,"hidden":false,"merged":[]}
[]
[null,"Use of ROUND & RAND Functions"]
[]
[null,"4 Digit Random Number"]
[null,{"$f":"ROUND(RAND()*(9999-1000)+1000,0)","v":1663}]
[null,{"$f":"ROUND(RAND()*(9999-1000)+1000,0)","v":8250}]
[null,9714]
[null,1107]
[null,8497]

{"sheet":"INT & RAND","index":4,"n_rows":9,"n_cols":2,"rows_kept":9,"cut":false,"hidden":false,"merged":[]}
[]
[null,"Use of INT & RAND Functions"]
[]
[null,"4 Digit Random Number"]
[null,{"$f":"INT(RAND()*(9999-1000)+1000)","v":5976}]
[null,{"$f":"INT(RAND()*(9999-1000)+1000)","v":9547}]
[null,8674]
[null,1968]
[null,1159]

{"sheet":"LEFT & RANDBETWEEN","index":5,"n_rows":6,"n_cols":2,"rows_kept":6,"cut":false,"hidden":false,"merged":[]}
[]
[null,"Use of LEFT & RANDBETWEEN Functions"]
[]
[null,"4 Digit Random Number"]
[null,4]
[null,{"$f":"LEFT(RANDBETWEEN(1,9)&\nRANDBETWEEN(0,999999999999999)&\nRANDBETWEEN(0,999999999999999),B5)","v":"2531"}]

{"sheet":" Analysis ToolPak","index":6,"n_rows":9,"n_cols":2,"rows_kept":9,"cut":false,"hidden":false,"merged":[]}
[]
[null,"Use of Analysis ToolPak"]
[]
[null,"4 Digit Random Number"]
[null,5569.9441511276591]
[null,8085.6105227820681]
[null,2755.1991027558215]
[null,1669.0134586626789]
[null,1948.5929746391187]

{"sheet":"VBA","index":7,"n_rows":5,"n_cols":2,"rows_kept":5,"cut":false,"hidden":false,"merged":[]}
[]
[null,"Use of VBA"]
[]
[null,"4 Digit Random Number"]
[null,7084]